{"text_format":"3","workbook":"xlsx","n_sheets":1,"sheets":["Simple Examples"],"read":"whole","date_system":"1900"}

{"sheet":"Simple Examples","index":0,"n_rows":26,"n_cols":5,"rows_kept":26}
["Sample Values",null,"Sample Formulas","Formula Text","Notes"]
["Blank Cell",null,{"$f":"ISNUMBER(B2)","v":false},{"$f":"ADDRESS(ROW(),COLUMN()-1,4)&\": \"&_xlfn.FORMULATEXT(C2)","v":"C2: =ISNUMBER(B2)"}]
["Logical Values",true,false,"C3: =ISNUMBER(B3)"]
["Logical Values",false,false,"C4: =ISNUMBER(B4)"]
["Number Values",-10,true,"C5: =ISNUMBER(B5)"]
["Number Values",0,true,"C6: =ISNUMBER(B6)"]
["Number Values",306,true,"C7: =ISNUMBER(B7)"]
["Error Values",{"$f":"NA()","v":{"$error":"#N/A"}},false,"C8: =ISNUMBER(B8)","Errors not propagated with ISNUMBER"]
["Error Values",{"$f":"NonexistentName","v":{"$error":"#NAME?"}},false,"C9: =ISNUMBER(B9)","Errors not propagated with ISNUMBER"]
["Error Values",{"$f":"B713/B2","v":{"$error":"#DIV/0!"}},false,"C10: =ISNUMBER(B10)","Errors not propagated with ISNUMBER"]
["Text String Values","621",false,"C11: =ISNUMBER(B11)"]
["Text String Values","John Jacob Jingleheimer Schmidt",false,"C12: =ISNUMBER(B12)"]
["Text String Values",{"$f":"TEXT(B7,\"0\")","v":"306"},false,"C13: =ISNUMBER(B13)"]
[]
[null,null,{"$f":"ISNUMBER(B2:B13)","v":false},{"$f":"ADDRESS(ROW(),COLUMN()-1,4)&\": \"&_xlfn.FORMULATEXT(C15)","v":"C15: =ISNUMBER(B2:B13)"},"Multi-cell references can be used to produce an array of results"]
[null,null,false]
[null,null,false]
[null,null,true]
[null,null,true]
[null,null,true]
[null,null,false]
[null,null,false]
[null,null,false]
[null,null,false]
[null,null,false]
[null,null,false]